[Event "Titled Tuesday Blitz May 23 Late 2023"]
[White "Duda, Jan-Krzysztof"]
[Black "Baskakov, Egor"]
[WhiteFideId "1170546"]
[BlackFideId "24197866"]
[WhiteElo "2790"]
[BlackElo "2225"]
[Result "1-0"]
[Round "07"]
[TimeControl "180+2"]
[Date "2023.05.23"]
[WhiteClock "0:00:12"]
[BlackClock "0:01:15"]

1. d4 {[%clk 0:03:00]}  Nf6 {[%clk 0:02:59]} 2. c4 {[%clk 0:03:00]}  e6 {[%clk 0:03:00]} 3. Nf3 {[%clk 0:03:01]}  d5 {[%clk 0:03:01]} 4. g3 {[%clk 0:03:01]}  Be7 {[%clk 0:03:00]} 5. Bg2 {[%clk 0:03:02]}  O-O {[%clk 0:03:00]} 6. Qc2 {[%clk 0:03:02]}  Ne4 {[%clk 0:03:00]} 7. Nc3 {[%clk 0:02:59]}  f5 {[%clk 0:03:00]} 8. Ne5 {[%clk 0:02:55]}  c6 {[%clk 0:03:00]} 9. f3 {[%clk 0:02:41]}  Nxc3 {[%clk 0:03:00]} 10. Qxc3 {[%clk 0:02:36]}  Nd7 {[%clk 0:03:01]} 11. Nd3 {[%clk 0:02:32]}  dxc4 {[%clk 0:02:55]} 12. Qxc4 {[%clk 0:02:33]}  Nb6 {[%clk 0:02:56]} 13. Qc3 {[%clk 0:02:29]}  Na4 {[%clk 0:02:31]} 14. Qc2 {[%clk 0:01:54]}  Qxd4 {[%clk 0:02:28]} 15. e3 {[%clk 0:01:55]}  Qd8 {[%clk 0:02:25]} 16. O-O {[%clk 0:01:50]}  Nb6 {[%clk 0:02:25]} 17. Rd1 {[%clk 0:01:49]}  Nd5 {[%clk 0:02:25]} 18. Ne5 {[%clk 0:01:44]}  Qc7 {[%clk 0:02:17]} 19. f4 {[%clk 0:01:43]}  Qb6 {[%clk 0:02:17]} 20. Nc4 {[%clk 0:01:30]}  Qc7 {[%clk 0:02:15]} 21. b3 {[%clk 0:01:26]}  Bf6 {[%clk 0:02:14]} 22. Bb2 {[%clk 0:01:24]}  Bd7 {[%clk 0:02:10]} 23. Bxf6 {[%clk 0:01:09]}  Rxf6 {[%clk 0:02:11]} 24. Qd2 {[%clk 0:01:09]}  Be8 {[%clk 0:02:08]} 25. Bf3 {[%clk 0:01:08]}  g5 {[%clk 0:02:03]} 26. fxg5 {[%clk 0:01:06]}  Rg6 {[%clk 0:02:04]} 27. e4 {[%clk 0:01:07]}  Nb6 {[%clk 0:01:56]} 28. Nd6 {[%clk 0:00:59]}  Qe7 {[%clk 0:01:50]} 29. h4 {[%clk 0:00:47]}  fxe4 {[%clk 0:01:47]} 30. Bxe4 {[%clk 0:00:46]}  Rg7 {[%clk 0:01:47]} 31. Bc2 {[%clk 0:00:25]}  Nd5 {[%clk 0:01:45]} 32. Ne4 {[%clk 0:00:22]}  Bg6 {[%clk 0:01:40]} 33. Rf1 {[%clk 0:00:22]}  Bf5 {[%clk 0:01:36]} 34. Rae1 {[%clk 0:00:17]}  h6 {[%clk 0:01:29]} 35. Rxf5 {[%clk 0:00:16]}  exf5 {[%clk 0:01:26]} 36. Nf6+ {[%clk 0:00:15]}  Qxf6 {[%clk 0:01:23]} 37. gxf6 {[%clk 0:00:15]}  Nxf6 {[%clk 0:01:22]} 38. Kh2 {[%clk 0:00:15]}  Ng4+ {[%clk 0:01:21]} 39. Kh3 {[%clk 0:00:15]}  Rf8 {[%clk 0:01:20]} 40. Qf4 {[%clk 0:00:15]}  Nf6 {[%clk 0:01:18]} 41. Bxf5 {[%clk 0:00:13]}  Nd5 {[%clk 0:01:15]} 42. Be6+ {[%clk 0:00:12]} 1-0


[Site "https://www.chess.com"]

[Event "Titled Tuesday Blitz May 23 Late 2023"]
[White "Bluebaum, Matthias"]
[Black "Sychev, Klementy"]
[WhiteFideId "24651516"]
[BlackFideId "4114060"]
[WhiteElo "2639"]
[BlackElo "2583"]
[Result "1-0"]
[Round "07"]
[TimeControl "180+2"]
[Date "2023.05.23"]
[WhiteClock "0:00:20"]
[BlackClock "0:00:00"]

1. d4 {[%clk 0:03:00]}  Nf6 {[%clk 0:02:58]} 2. c4 {[%clk 0:03:01]}  e6 {[%clk 0:02:59]} 3. Nc3 {[%clk 0:03:02]}  Bb4 {[%clk 0:02:59]} 4. e3 {[%clk 0:03:02]}  O-O {[%clk 0:02:59]} 5. Bd2 {[%clk 0:03:03]}  d5 {[%clk 0:02:53]} 6. Nf3 {[%clk 0:03:03]}  b6 {[%clk 0:02:50]} 7. cxd5 {[%clk 0:03:04]}  exd5 {[%clk 0:02:50]} 8. Rc1 {[%clk 0:03:04]}  c5 {[%clk 0:02:49]} 9. Be2 {[%clk 0:03:02]}  Nc6 {[%clk 0:02:40]} 10. O-O {[%clk 0:03:00]}  Bg4 {[%clk 0:02:31]} 11. dxc5 {[%clk 0:02:52]}  bxc5 {[%clk 0:02:32]} 12. h3 {[%clk 0:02:30]}  Bh5 {[%clk 0:02:30]} 13. Na4 {[%clk 0:02:20]}  Bxd2 {[%clk 0:02:27]} 14. Qxd2 {[%clk 0:02:16]}  Ne4 {[%clk 0:02:12]} 15. Qd1 {[%clk 0:02:16]}  c4 {[%clk 0:01:48]} 16. Nd2 {[%clk 0:02:05]}  Nxd2 {[%clk 0:01:27]} 17. Qxd2 {[%clk 0:02:03]}  Bxe2 {[%clk 0:01:27]} 18. Qxe2 {[%clk 0:02:04]}  Ne5 {[%clk 0:01:27]} 19. b3 {[%clk 0:01:57]}  Nd3 {[%clk 0:01:24]} 20. Rcd1 {[%clk 0:01:37]}  Qa5 {[%clk 0:01:19]} 21. Qd2 {[%clk 0:01:27]}  Qb5 {[%clk 0:00:56]} 22. Nc3 {[%clk 0:01:23]}  Qc6 {[%clk 0:00:56]} 23. Qc2 {[%clk 0:01:03]}  Rfd8 {[%clk 0:00:44]} 24. Ne2 {[%clk 0:00:55]}  Rac8 {[%clk 0:00:39]} 25. Qc3 {[%clk 0:00:49]}  Qa6 {[%clk 0:00:37]} 26. Ng3 {[%clk 0:00:40]}  f6 {[%clk 0:00:08]} 27. Qd4 {[%clk 0:00:34]}  Qxa2 {[%clk 0:00:05]} 28. Nf5 {[%clk 0:00:35]}  Kh8 {[%clk 0:00:03]} 29. Ra1 {[%clk 0:00:31]}  Qxb3 {[%clk 0:00:03]} 30. Rxa7 {[%clk 0:00:29]}  Qb2 {[%clk 0:00:04]} 31. Qg4 {[%clk 0:00:28]}  Rg8 {[%clk 0:00:01]} 32. Ne7 {[%clk 0:00:20]}  Rcf8 {[%clk 0:00:00]} 33. Ng6+ {[%clk 0:00:20]} 1-0


[Site "https://www.chess.com"]

[Event "Titled Tuesday Blitz May 23 Late 2023"]
[White "Mekhitarian, Krikor Sevag"]
[Black "Bortnyk, Mykola"]
[WhiteFideId "2107660"]
[BlackFideId "14120836"]
[WhiteElo "2604"]
[BlackElo "2582"]
[Result "1-0"]
[Round "07"]
[TimeControl "180+2"]
[Date "2023.05.23"]
[WhiteClock "0:00:08"]
[BlackClock "0:00:11"]

1. Nf3 {[%clk 0:03:00]}  c5 {[%clk 0:02:57]} 2. c4 {[%clk 0:02:59]}  Nc6 {[%clk 0:02:52]} 3. Nc3 {[%clk 0:02:55]}  Nf6 {[%clk 0:02:52]} 4. d4 {[%clk 0:02:44]}  cxd4 {[%clk 0:02:49]} 5. Nxd4 {[%clk 0:02:44]}  a6 {[%clk 0:02:40]} 6. e4 {[%clk 0:02:30]}  e5 {[%clk 0:02:40]} 7. Nf5 {[%clk 0:02:11]}  d5 {[%clk 0:02:18]} 8. cxd5 {[%clk 0:02:05]}  Bxf5 {[%clk 0:02:17]} 9. exf5 {[%clk 0:02:05]}  Nd4 {[%clk 0:02:16]} 10. Bd3 {[%clk 0:01:58]}  Nxd5 {[%clk 0:02:07]} 11. O-O {[%clk 0:01:52]}  Be7 {[%clk 0:02:01]} 12. Be4 {[%clk 0:01:48]}  Nxc3 {[%clk 0:01:56]} 13. bxc3 {[%clk 0:01:49]}  Nc6 {[%clk 0:01:56]} 14. Qf3 {[%clk 0:01:39]}  O-O {[%clk 0:01:54]} 15. Rb1 {[%clk 0:01:39]}  Qc7 {[%clk 0:01:47]} 16. Rxb7 {[%clk 0:01:26]}  Qxb7 {[%clk 0:01:45]} 17. Bxc6 {[%clk 0:01:26]}  Qc8 {[%clk 0:01:27]} 18. Bxa8 {[%clk 0:01:13]}  Qxa8 {[%clk 0:01:28]} 19. Qxa8 {[%clk 0:01:13]}  Rxa8 {[%clk 0:01:29]} 20. Be3 {[%clk 0:01:10]}  Rb8 {[%clk 0:01:24]} 21. c4 {[%clk 0:00:56]}  Kf8 {[%clk 0:01:17]} 22. Rc1 {[%clk 0:00:51]}  Ba3 {[%clk 0:01:11]} 23. Rd1 {[%clk 0:00:49]}  Ke7 {[%clk 0:01:11]} 24. g4 {[%clk 0:00:49]}  Rc8 {[%clk 0:01:08]} 25. Rd3 {[%clk 0:00:48]}  Bb4 {[%clk 0:01:02]} 26. Rb3 {[%clk 0:00:46]}  a5 {[%clk 0:00:53]} 27. a3 {[%clk 0:00:46]}  Bd6 {[%clk 0:00:49]} 28. Rb7+ {[%clk 0:00:34]}  Ke8 {[%clk 0:00:49]} 29. Rb5 {[%clk 0:00:24]}  Rxc4 {[%clk 0:00:46]} 30. h3 {[%clk 0:00:24]}  a4 {[%clk 0:00:43]} 31. Ra5 {[%clk 0:00:13]}  Bxa3 {[%clk 0:00:35]} 32. Rxe5+ {[%clk 0:00:13]}  Kd7 {[%clk 0:00:36]} 33. Ra5 {[%clk 0:00:08]}  Bb2 {[%clk 0:00:36]} 34. Bc5 {[%clk 0:00:08]}  Kc6 {[%clk 0:00:33]} 35. Bf8 {[%clk 0:00:08]}  Kb6 {[%clk 0:00:31]} 36. Ra8 {[%clk 0:00:07]}  Kb7 {[%clk 0:00:31]} 37. Ra5 {[%clk 0:00:07]}  g6 {[%clk 0:00:30]} 38. fxg6 {[%clk 0:00:07]}  Kb6 {[%clk 0:00:23]} 39. Ra8 {[%clk 0:00:04]}  Kb7 {[%clk 0:00:23]} 40. Ra5 {[%clk 0:00:03]}  Kb6 {[%clk 0:00:18]} 41. Ra8 {[%clk 0:00:03]}  Rc1+ {[%clk 0:00:18]} 42. Kg2 {[%clk 0:00:02]}  Kb7 {[%clk 0:00:19]} 43. Ra5 {[%clk 0:00:02]}  Kb6 {[%clk 0:00:14]} 44. Rxa4 {[%clk 0:00:03]}  Rc8 {[%clk 0:00:04]} 45. g7 {[%clk 0:00:03]}  Bxg7 {[%clk 0:00:04]} 46. Bxg7 {[%clk 0:00:04]}  Kb5 {[%clk 0:00:05]} 47. Rf4 {[%clk 0:00:04]}  Rg8 {[%clk 0:00:06]} 48. Bf6 {[%clk 0:00:04]}  Kc6 {[%clk 0:00:07]} 49. g5 {[%clk 0:00:05]}  Kd6 {[%clk 0:00:08]} 50. h4 {[%clk 0:00:05]}  Kd5 {[%clk 0:00:08]} 51. Kg3 {[%clk 0:00:06]}  Ke6 {[%clk 0:00:09]} 52. f3 {[%clk 0:00:06]}  h6 {[%clk 0:00:10]} 53. Kg4 {[%clk 0:00:07]}  hxg5 {[%clk 0:00:11]} 54. hxg5 {[%clk 0:00:07]}  Ra8 {[%clk 0:00:09]} 55. Re4+ {[%clk 0:00:07]}  Kd5 {[%clk 0:00:09]} 56. Re7 {[%clk 0:00:08]}  Rf8 {[%clk 0:00:09]} 57. f4 {[%clk 0:00:08]}  Kd6 {[%clk 0:00:09]} 58. Kf5 {[%clk 0:00:07]}  Kc6 {[%clk 0:00:09]} 59. Bg7 {[%clk 0:00:08]}  Ra8 {[%clk 0:00:08]} 60. Rxf7 {[%clk 0:00:08]}  Kd6 {[%clk 0:00:09]} 61. Kg6 {[%clk 0:00:08]}  Kd5 {[%clk 0:00:10]} 62. f5 {[%clk 0:00:08]}  Kc5 {[%clk 0:00:11]} 63. Re7 {[%clk 0:00:08]}  Kd6 {[%clk 0:00:12]} 64. f6 {[%clk 0:00:09]}  Kd5 {[%clk 0:00:12]} 65. Re1 {[%clk 0:00:09]}  Ra6 {[%clk 0:00:13]} 66. Kh7 {[%clk 0:00:08]}  Ra7 {[%clk 0:00:13]} 67. g6 {[%clk 0:00:08]}  Kd6 {[%clk 0:00:14]} 68. f7 {[%clk 0:00:08]}  Ra8 {[%clk 0:00:15]} 69. f8=Q+ {[%clk 0:00:08]}  Kd7 {[%clk 0:00:11]} 70. Qxa8 {[%clk 0:00:08]} 1-0


[Site "https://www.chess.com"]

[Event "Titled Tuesday Blitz May 23 Late 2023"]
[White "Simonian, Hrair"]
[Black "Naroditsky, Daniel"]
[WhiteFideId "13302337"]
[BlackFideId "2026961"]
[WhiteElo "2447"]
[BlackElo "2633"]
[Result "1-0"]
[Round "07"]
[TimeControl "180+2"]
[Date "2023.05.23"]
[WhiteClock "0:01:55"]
[BlackClock "0:01:41"]

1. e4 {[%clk 0:03:00]}  c5 {[%clk 0:02:59]} 2. Nc3 {[%clk 0:03:01]}  d6 {[%clk 0:02:59]} 3. Nge2 {[%clk 0:02:57]}  Nf6 {[%clk 0:02:59]} 4. g3 {[%clk 0:02:56]}  Nc6 {[%clk 0:03:00]} 5. Bg2 {[%clk 0:02:55]}  g6 {[%clk 0:03:00]} 6. O-O {[%clk 0:02:56]}  Bg7 {[%clk 0:03:01]} 7. d3 {[%clk 0:02:56]}  O-O {[%clk 0:03:01]} 8. Bg5 {[%clk 0:02:54]}  Rb8 {[%clk 0:03:01]} 9. Qd2 {[%clk 0:02:52]}  b5 {[%clk 0:03:02]} 10. Bh6 {[%clk 0:02:51]}  b4 {[%clk 0:03:03]} 11. Nd5 {[%clk 0:02:48]}  Nxd5 {[%clk 0:02:59]} 12. exd5 {[%clk 0:02:49]}  Ne5 {[%clk 0:02:59]} 13. Bxg7 {[%clk 0:02:47]}  Kxg7 {[%clk 0:03:00]} 14. d4 {[%clk 0:02:48]}  Nc4 {[%clk 0:02:53]} 15. Qd3 {[%clk 0:02:47]}  Nb6 {[%clk 0:02:41]} 16. dxc5 {[%clk 0:02:43]}  dxc5 {[%clk 0:02:42]} 17. Nf4 {[%clk 0:02:41]}  Qd6 {[%clk 0:02:42]} 18. Rfe1 {[%clk 0:02:38]}  Bf5 {[%clk 0:02:42]} 19. Qe3 {[%clk 0:02:34]}  Rfe8 {[%clk 0:02:41]} 20. c3 {[%clk 0:02:28]}  bxc3 {[%clk 0:02:35]} 21. Qxc3+ {[%clk 0:02:26]}  Kg8 {[%clk 0:02:36]} 22. b3 {[%clk 0:02:21]}  Rbc8 {[%clk 0:02:37]} 23. Bf1 {[%clk 0:02:09]}  Nxd5 {[%clk 0:02:10]} 24. Nxd5 {[%clk 0:02:08]}  Qxd5 {[%clk 0:02:11]} 25. Bb5 {[%clk 0:02:03]}  Bh3 {[%clk 0:02:11]} 26. f3 {[%clk 0:02:03]}  Red8 {[%clk 0:02:10]} 27. Rxe7 {[%clk 0:02:00]}  Qd2 {[%clk 0:01:41]} 28. Re8+ {[%clk 0:01:55]} 1-0


[Site "https://www.chess.com"]

[Event "Titled Tuesday Blitz May 23 Late 2023"]
[White "Grischuk, Alexander"]
[Black "Holt, Conrad"]
[WhiteFideId "4126025"]
[BlackFideId "2034387"]
[WhiteElo "2721"]
[BlackElo "2592"]
[Result "1-0"]
[Round "07"]
[TimeControl "180+2"]
[Date "2023.05.23"]
[WhiteClock "0:00:03"]
[BlackClock "0:00:00"]

1. Nf3 {[%clk 0:03:00]}  d5 {[%clk 0:02:59]} 2. g3 {[%clk 0:03:01]}  Bg4 {[%clk 0:02:58]} 3. Bg2 {[%clk 0:03:01]}  Nd7 {[%clk 0:02:59]} 4. h3 {[%clk 0:03:01]}  Bxf3 {[%clk 0:02:58]} 5. Bxf3 {[%clk 0:03:02]}  e6 {[%clk 0:02:58]} 6. d3 {[%clk 0:02:59]}  Ngf6 {[%clk 0:02:54]} 7. Bg2 {[%clk 0:02:57]}  Bd6 {[%clk 0:02:51]} 8. e4 {[%clk 0:02:57]}  O-O {[%clk 0:02:46]} 9. O-O {[%clk 0:02:54]}  c6 {[%clk 0:02:40]} 10. f4 {[%clk 0:02:49]}  dxe4 {[%clk 0:02:31]} 11. dxe4 {[%clk 0:02:50]}  Bc5+ {[%clk 0:02:32]} 12. Kh1 {[%clk 0:02:47]}  e5 {[%clk 0:02:32]} 13. f5 {[%clk 0:02:34]}  Qe7 {[%clk 0:02:19]} 14. Qe2 {[%clk 0:02:32]}  Rfd8 {[%clk 0:02:18]} 15. Nd2 {[%clk 0:02:31]}  a5 {[%clk 0:02:15]} 16. a4 {[%clk 0:02:30]}  Ba7 {[%clk 0:02:01]} 17. Nc4 {[%clk 0:02:28]}  Nc5 {[%clk 0:01:44]} 18. b3 {[%clk 0:02:18]}  Ncd7 {[%clk 0:01:35]} 19. c3 {[%clk 0:02:09]}  Nc5 {[%clk 0:01:28]} 20. Ba3 {[%clk 0:02:00]}  Qc7 {[%clk 0:01:27]} 21. Qc2 {[%clk 0:01:18]}  b5 {[%clk 0:01:23]} 22. axb5 {[%clk 0:01:18]}  cxb5 {[%clk 0:01:23]} 23. Nxa5 {[%clk 0:01:19]}  Nd3 {[%clk 0:01:06]} 24. b4 {[%clk 0:01:13]}  Rac8 {[%clk 0:00:46]} 25. Kh2 {[%clk 0:00:56]}  h5 {[%clk 0:00:40]} 26. Rfd1 {[%clk 0:00:50]}  Qxc3 {[%clk 0:00:28]} 27. Qxc3 {[%clk 0:00:51]}  Rxc3 {[%clk 0:00:28]} 28. Bb2 {[%clk 0:00:36]}  Rc2 {[%clk 0:00:13]} 29. Bxe5 {[%clk 0:00:36]}  Nxe4 {[%clk 0:00:13]} 30. Nb7 {[%clk 0:00:33]}  Re8 {[%clk 0:00:06]} 31. Rxd3 {[%clk 0:00:33]}  Rxe5 {[%clk 0:00:03]} 32. Rxa7 {[%clk 0:00:30]}  Ng5 {[%clk 0:00:02]} 33. Ra1 {[%clk 0:00:23]}  Ree2 {[%clk 0:00:02]} 34. Rg1 {[%clk 0:00:24]}  Rb2 {[%clk 0:00:02]} 35. Nc5 {[%clk 0:00:19]}  Rf2 {[%clk 0:00:01]} 36. h4 {[%clk 0:00:18]}  Nf3+ {[%clk 0:00:01]} 37. Rxf3 {[%clk 0:00:18]}  Rxf3 {[%clk 0:00:02]} 38. Kh3 {[%clk 0:00:05]}  Rxf5 {[%clk 0:00:02]} 39. Re1 {[%clk 0:00:05]}  g6 {[%clk 0:00:02]} 40. Nd3 {[%clk 0:00:03]}  Rd2 {[%clk 0:00:02]} 41. Be4 {[%clk 0:00:03]}  Rf6 {[%clk 0:00:00]} 42. Nf4 {[%clk 0:00:03]} 1-0


[Site "https://www.chess.com"]

[Event "Titled Tuesday Blitz May 23 Late 2023"]
[White "Checa, Nicolas"]
[Black "Tatarinov, Dmitry"]
[WhiteFideId "2069342"]
[BlackFideId "24160067"]
[WhiteElo "2507"]
[BlackElo "2326"]
[Result "0-1"]
[Round "07"]
[TimeControl "180+2"]
[Date "2023.05.23"]
[WhiteClock "0:01:49"]
[BlackClock "0:01:21"]

1. d4 {[%clk 0:03:00]}  Nf6 {[%clk 0:02:59]} 2. c4 {[%clk 0:03:00]}  e6 {[%clk 0:02:59]} 3. Nf3 {[%clk 0:03:00]}  Bb4+ {[%clk 0:03:00]} 4. Bd2 {[%clk 0:03:00]}  Be7 {[%clk 0:02:57]} 5. Nc3 {[%clk 0:02:59]}  d5 {[%clk 0:02:58]} 6. Bf4 {[%clk 0:02:59]}  O-O {[%clk 0:02:57]} 7. Rc1 {[%clk 0:02:58]}  c6 {[%clk 0:02:42]} 8. e3 {[%clk 0:02:58]}  Nbd7 {[%clk 0:02:42]} 9. h3 {[%clk 0:02:57]}  b6 {[%clk 0:02:40]} 10. cxd5 {[%clk 0:02:57]}  Nxd5 {[%clk 0:02:36]} 11. Bh2 {[%clk 0:02:56]}  Nxc3 {[%clk 0:02:33]} 12. bxc3 {[%clk 0:02:56]}  Bb7 {[%clk 0:02:34]} 13. Bd3 {[%clk 0:02:55]}  c5 {[%clk 0:02:34]} 14. O-O {[%clk 0:02:55]}  Rc8 {[%clk 0:02:34]} 15. Qe2 {[%clk 0:02:56]}  Nf6 {[%clk 0:02:33]} 16. Ba6 {[%clk 0:02:55]}  Bxa6 {[%clk 0:02:31]} 17. Qxa6 {[%clk 0:02:56]}  Bd6 {[%clk 0:02:20]} 18. Ne5 {[%clk 0:02:52]}  Qe7 {[%clk 0:02:18]} 19. a4 {[%clk 0:02:47]}  Ne4 {[%clk 0:02:14]} 20. a5 {[%clk 0:02:46]}  bxa5 {[%clk 0:02:05]} 21. Qxa5 {[%clk 0:02:46]}  Nd2 {[%clk 0:02:02]} 22. Ra1 {[%clk 0:02:24]}  Nxf1 {[%clk 0:02:02]} 23. Kxf1 {[%clk 0:02:24]}  cxd4 {[%clk 0:02:00]} 24. cxd4 {[%clk 0:02:25]}  Rc7 {[%clk 0:01:59]} 25. Qa6 {[%clk 0:02:25]}  Rfc8 {[%clk 0:01:57]} 26. Ng6 {[%clk 0:02:22]}  Rc1+ {[%clk 0:01:54]} 27. Ke2 {[%clk 0:02:19]}  hxg6 {[%clk 0:01:38]} 28. Bxd6 {[%clk 0:02:16]}  R8c2+ {[%clk 0:01:35]} 29. Kd3 {[%clk 0:02:15]}  Qg5 {[%clk 0:01:28]} 30. Rxc1 {[%clk 0:02:13]}  Rxc1 {[%clk 0:01:29]} 31. g4 {[%clk 0:02:08]}  Qd5 {[%clk 0:01:23]} 32. Bb4 {[%clk 0:01:49]}  Qb3+ {[%clk 0:01:21]} 0-1


[Site "https://www.chess.com"]

[Event "Titled Tuesday Blitz May 23 Late 2023"]
[White "Makarian, Rudik"]
[Black "Timmermans, Mark"]
[WhiteFideId "44105681"]
[BlackFideId "1026399"]
[WhiteElo "2461"]
[BlackElo "2460"]
[Result "1-0"]
[Round "07"]
[TimeControl "180+2"]
[Date "2023.05.23"]
[WhiteClock "0:00:23"]
[BlackClock "0:00:18"]

1. d4 {[%clk 0:03:00]}  Nf6 {[%clk 0:02:59]} 2. c4 {[%clk 0:03:01]}  e6 {[%clk 0:02:59]} 3. Nf3 {[%clk 0:03:02]}  d5 {[%clk 0:02:59]} 4. g3 {[%clk 0:03:02]}  Be7 {[%clk 0:02:59]} 5. Bg2 {[%clk 0:03:03]}  O-O {[%clk 0:02:59]} 6. Nc3 {[%clk 0:03:04]}  dxc4 {[%clk 0:02:53]} 7. Ne5 {[%clk 0:03:04]}  Nd5 {[%clk 0:02:52]} 8. O-O {[%clk 0:03:01]}  c6 {[%clk 0:02:52]} 9. Nxc4 {[%clk 0:03:00]}  b5 {[%clk 0:02:51]} 10. Ne5 {[%clk 0:02:59]}  Bb7 {[%clk 0:02:49]} 11. e4 {[%clk 0:02:59]}  Nxc3 {[%clk 0:02:49]} 12. bxc3 {[%clk 0:03:00]}  Nd7 {[%clk 0:02:49]} 13. Nf3 {[%clk 0:02:43]}  c5 {[%clk 0:02:44]} 14. Qe2 {[%clk 0:02:38]}  b4 {[%clk 0:02:37]} 15. Rb1 {[%clk 0:02:18]}  a5 {[%clk 0:02:36]} 16. Rd1 {[%clk 0:02:12]}  Qc8 {[%clk 0:02:26]} 17. d5 {[%clk 0:02:03]}  exd5 {[%clk 0:02:26]} 18. exd5 {[%clk 0:02:04]}  Re8 {[%clk 0:02:12]} 19. Qc2 {[%clk 0:02:00]}  bxc3 {[%clk 0:02:01]} 20. Qxc3 {[%clk 0:01:56]}  Bf6 {[%clk 0:01:59]} 21. Qc2 {[%clk 0:01:53]}  Ne5 {[%clk 0:01:42]} 22. Bf4 {[%clk 0:01:26]}  Ng6 {[%clk 0:01:21]} 23. Be3 {[%clk 0:01:24]}  c4 {[%clk 0:01:15]} 24. Nd4 {[%clk 0:01:23]}  Rb8 {[%clk 0:00:50]} 25. Nc6 {[%clk 0:01:03]}  Bxc6 {[%clk 0:00:50]} 26. Rxb8 {[%clk 0:01:04]}  Qxb8 {[%clk 0:00:49]} 27. dxc6 {[%clk 0:01:05]}  c3 {[%clk 0:00:47]} 28. Rb1 {[%clk 0:00:51]}  Qc8 {[%clk 0:00:44]} 29. Rb7 {[%clk 0:00:49]}  Ne5 {[%clk 0:00:41]} 30. c7 {[%clk 0:00:38]}  Ng6 {[%clk 0:00:34]} 31. Rb8 {[%clk 0:00:31]}  Qxb8 {[%clk 0:00:27]} 32. cxb8=Q {[%clk 0:00:30]}  Rxb8 {[%clk 0:00:28]} 33. Be4 {[%clk 0:00:27]}  Rb2 {[%clk 0:00:26]} 34. Qa4 {[%clk 0:00:27]}  h5 {[%clk 0:00:20]} 35. Qe8+ {[%clk 0:00:25]}  Nf8 {[%clk 0:00:20]} 36. Bc5 {[%clk 0:00:23]}  c2 {[%clk 0:00:18]} 37. Qxf8# {[%clk 0:00:23]} 1-0


[Site "https://www.chess.com"]

[Event "Titled Tuesday Blitz May 23 Late 2023"]
[White "Ibarra Jerez, Jose Carlos"]
[Black "Zwirs, Nico"]
[WhiteFideId "2226332"]
[BlackFideId "1036432"]
[WhiteElo "2638"]
[BlackElo "2381"]
[Result "1/2-1/2"]
[Round "07"]
[TimeControl "180+2"]
[Date "2023.05.23"]
[WhiteClock "0:00:21"]
[BlackClock "0:01:03"]

1. e4 {[%clk 0:02:58]}  c5 {[%clk 0:03:00]} 2. Ne2 {[%clk 0:02:58]}  Nf6 {[%clk 0:02:59]} 3. Nbc3 {[%clk 0:02:57]}  d6 {[%clk 0:03:00]} 4. d4 {[%clk 0:02:55]}  cxd4 {[%clk 0:03:01]} 5. Nxd4 {[%clk 0:02:56]}  Bd7 {[%clk 0:03:01]} 6. Bg5 {[%clk 0:02:50]}  e6 {[%clk 0:03:02]} 7. Qd2 {[%clk 0:02:50]}  a6 {[%clk 0:03:02]} 8. O-O-O {[%clk 0:02:49]}  h6 {[%clk 0:03:02]} 9. Bxf6 {[%clk 0:02:37]}  Qxf6 {[%clk 0:03:03]} 10. f4 {[%clk 0:02:37]}  Qd8 {[%clk 0:03:03]} 11. f5 {[%clk 0:02:36]}  Be7 {[%clk 0:03:00]} 12. Kb1 {[%clk 0:02:35]}  Nc6 {[%clk 0:03:01]} 13. Bc4 {[%clk 0:02:31]}  Nxd4 {[%clk 0:02:59]} 14. Qxd4 {[%clk 0:02:32]}  O-O {[%clk 0:02:56]} 15. fxe6 {[%clk 0:02:24]}  fxe6 {[%clk 0:02:57]} 16. e5 {[%clk 0:02:24]}  d5 {[%clk 0:02:55]} 17. Nxd5 {[%clk 0:02:19]}  Bc6 {[%clk 0:02:49]} 18. Nxe7+ {[%clk 0:02:00]}  Qxe7 {[%clk 0:02:49]} 19. Qg4 {[%clk 0:02:01]}  Kh8 {[%clk 0:02:36]} 20. Rhf1 {[%clk 0:01:44]}  Qc5 {[%clk 0:02:27]} 21. Bxe6 {[%clk 0:01:33]}  Qxe5 {[%clk 0:02:23]} 22. Bf5 {[%clk 0:01:14]}  Rf6 {[%clk 0:02:17]} 23. Bd3 {[%clk 0:01:10]}  Raf8 {[%clk 0:02:13]} 24. Rxf6 {[%clk 0:01:06]}  Qxf6 {[%clk 0:02:14]} 25. b3 {[%clk 0:00:58]}  a5 {[%clk 0:02:13]} 26. a4 {[%clk 0:00:58]}  Rd8 {[%clk 0:02:07]} 27. Re1 {[%clk 0:00:53]}  Rxd3 {[%clk 0:01:55]} 28. cxd3 {[%clk 0:00:49]}  Qc3 {[%clk 0:01:56]} 29. Qc8+ {[%clk 0:00:47]}  Kh7 {[%clk 0:01:56]} 30. Qf5+ {[%clk 0:00:48]}  Kh8 {[%clk 0:01:55]} 31. Qe6 {[%clk 0:00:24]}  Qxd3+ {[%clk 0:01:51]} 32. Kb2 {[%clk 0:00:23]}  Qd2+ {[%clk 0:01:27]} 33. Kb1 {[%clk 0:00:23]}  Qd3+ {[%clk 0:01:24]} 34. Kb2 {[%clk 0:00:23]}  Qd2+ {[%clk 0:01:22]} 35. Ka3 {[%clk 0:00:23]}  Qb4+ {[%clk 0:01:17]} 36. Ka2 {[%clk 0:00:22]}  Qd2+ {[%clk 0:01:16]} 37. Ka1 {[%clk 0:00:20]}  Qc3+ {[%clk 0:01:07]} 38. Kb1 {[%clk 0:00:21]}  Qd3+ {[%clk 0:01:03]} 1/2-1/2


[Site "https://www.chess.com"]